[Event "Norway Chess 2015 Blitz"]
[Site "Stavanger"]
[Date "2015.06.15"]
[Round "1"]
[White "Giri, Anish"]
[Black "Carlsen, Magnus"]
[Result "1/2-1/2"]
[ECO "C60"]
[WhiteElo "2771"]
[BlackElo "2933"]
[Annotator ""]
[PlyCount "118"]
[EventDate "2015.??.??"]
[EventCountry "NOR"]
[TimeControl "240+2"]

1. e4 {[%emt 0:00:59]} e5 {[%emt 0:01:00]} 2. Nf3 {[%emt 0:00:01]} Nc6 {[%emt
0:00:01]} 3. Bb5 {[%emt 0:00:02]} g6 {[%emt 0:00:02]} 4. O-O {[%emt 0:00:03]}
Bg7 {[%emt 0:00:01]} 5. c3 {[%emt 0:00:01]} a6 {[%emt 0:00:01]} 6. Ba4 {[%emt
0:00:01]} d6 {[%emt 0:00:01]} 7. d4 {[%emt 0:00:01]} Bd7 {[%emt 0:00:01]} 8.
Re1 {[%emt 0:00:12]} b5 {[%emt 0:00:02]} 9. Bc2 {[%emt 0:00:02]} Nf6 {[%emt 0:
00:02]} 10. h3 {[%emt 0:00:02]} O-O {[%emt 0:00:02]} 11. Nbd2 {[%emt 0:00:07]}
Re8 {[%emt 0:00:13]} 12. Nf1 {[%emt 0:00:05]} Na5 {[%emt 0:00:05]} 13. b3 {
[%emt 0:00:31]} c5 {[%emt 0:00:17]} 14. d5 {[%emt 0:00:32]} Nh5 {[%emt 0:00:02]
} 15. Bg5 {[%emt 0:00:04]} Qc7 {[%emt 0:00:10]} 16. Ng3 {[%emt 0:00:14]} Nf4 {
[%emt 0:00:03]} 17. Qd2 {[%emt 0:00:18]} c4 {[%emt 0:00:32]} 18. b4 {[%emt 0:
00:09]} Nb7 {[%emt 0:00:02]} 19. Bxf4 {[%emt 0:00:06]} exf4 {[%emt 0:00:01]}
20. Ne2 {[%emt 0:00:01]} a5 {[%emt 0:00:01]} 21. a3 {[%emt 0:00:03]} Qd8 {
[%emt 0:00:22]} 22. Qxf4 {[%emt 0:00:08]} Qe7 {[%emt 0:00:09]} 23. Ned4 {[%emt
0:00:05]} Ra6 {[%emt 0:00:01]} 24. h4 {[%emt 0:00:20]} Rea8 {[%emt 0:00:01]}
25. e5 {[%emt 0:00:04]} axb4 {[%emt 0:00:10]} 26. cxb4 {[%emt 0:00:06]} dxe5 {
[%emt 0:00:06]} 27. Nxe5 {[%emt 0:00:01]} Bxe5 {[%emt 0:00:01]} 28. Rxe5 {
[%emt 0:00:04]} Qf6 {[%emt 0:00:01]} 29. Qxf6 {[%emt 0:00:12]} Rxf6 {[%emt 0:
00:02]} 30. g3 {[%emt 0:00:06]} Kf8 {[%emt 0:00:03]} 31. Re3 {[%emt 0:00:03]}
Rfa6 {[%emt 0:00:03]} 32. Kg2 {[%emt 0:00:05]} Nd6 {[%emt 0:00:00]} 33. Ne2 {
[%emt 0:00:04]} Bf5 {[%emt 0:00:06]} 34. Nd4 {[%emt 0:00:02]} Bc8 {[%emt 0:00:
05]} 35. h5 {[%emt 0:00:01]} Bb7 {[%emt 0:00:01]} 36. Nc6 {[%emt 0:00:03]} Bxc6
{[%emt 0:00:10]} 37. dxc6 {[%emt 0:00:01]} Rxc6 {[%emt 0:00:01]} 38. hxg6 {
[%emt 0:00:00]} hxg6 {[%emt 0:00:01]} 39. Rd1 {[%emt 0:00:01]} c3 {[%emt 0:00:
02]} 40. Rd5 {[%emt 0:00:03]} Rxa3 {[%emt 0:00:02]} 41. Red3 {[%emt 0:00:05]}
Nf5 {[%emt 0:00:21]} 42. g4 {[%emt 0:00:03]} Ra2 {[%emt 0:00:14]} 43. gxf5 {
[%emt 0:00:01]} Rxc2 {[%emt 0:00:01]} 44. Rxb5 {[%emt 0:00:02]} gxf5 {[%emt 0:
00:36]} 45. Rc5 {[%emt 0:00:01]} Rxc5 {[%emt 0:00:02]} 46. bxc5 {[%emt 0:00:01]
} Rd2 {[%emt 0:00:04]} 47. Rxc3 Ke7 48. Kf3 {[%emt 0:00:05]} Kd7 {[%emt 0:00:
02]} 49. c6+ {[%emt 0:00:01]} Kc7 {[%emt 0:00:01]} 50. Rc5 {[%emt 0:00:01]} Ra2
{[%emt 0:00:04]} 51. Ke3 {[%emt 0:00:03]} f4+ {[%emt 0:00:01]} 52. Kf3 {[%emt
0:00:01]} Rb2 {[%emt 0:00:02]} 53. Rc4 {[%emt 0:00:01]} Ra2 {[%emt 0:00:01]}
54. Rc1 {[%emt 0:00:09]} Rb2 {[%emt 0:00:02]} 55. Rc3 {[%emt 0:00:01]} Ra2 {
[%emt 0:00:01]} 56. Rc4 {[%emt 0:00:03]} Rb2 {[%emt 0:00:01]} 57. Rxf4 {[%emt
0:00:07]} Kxc6 {[%emt 0:00:01]} 58. Rxf7 {[%emt 0:00:01]} Kd6 {[%emt 0:00:01]}
59. Ra7 {[%emt 0:00:02]} Ke5 {Ke4+} 1/2-1/2

[Event "Norway Chess 2015 Blitz"]
[Site "Stavanger"]
[Date "2015.06.15"]
[Round "1"]
[White "Hammer, Jon Ludvig"]
[Black "Aronian, Levon"]
[Result "0-1"]
[ECO "C68"]
[WhiteElo "2648"]
[BlackElo "2816"]
[Annotator ""]
[PlyCount "206"]
[EventDate "2015.??.??"]
[EventCountry "NOR"]
[TimeControl "240+2"]

1. e4 {[%emt 0:00:59]} e5 {[%emt 0:01:01]} 2. Nf3 {[%emt 0:00:01]} Nc6 {[%emt
0:00:01]} 3. Bb5 {[%emt 0:00:01]} a6 4. Bxc6 dxc6 {[%emt 0:00:02]} 5. O-O {
[%emt 0:00:02]} Bg4 {[%emt 0:00:02]} 6. h3 {[%emt 0:00:01]} h5 {[%emt 0:00:01]}
7. d3 {[%emt 0:00:01]} Qf6 {[%emt 0:00:06]} 8. Be3 {[%emt 0:00:01]} Bxf3 {
[%emt 0:00:05]} 9. Qxf3 {[%emt 0:00:01]} Qxf3 {[%emt 0:00:01]} 10. gxf3 {[%emt
0:00:01]} Bd6 {[%emt 0:00:05]} 11. Rd1 {[%emt 0:00:06]} Ne7 {[%emt 0:00:06]}
12. Nd2 {[%emt 0:00:02]} Ng6 {[%emt 0:00:03]} 13. Kf1 {[%emt 0:00:01]} f6 {
[%emt 0:00:10]} 14. c3 {[%emt 0:00:05]} c5 {[%emt 0:00:19]} 15. Nc4 {[%emt 0:
00:06]} Be7 {[%emt 0:00:58]} 16. Rac1 {[%emt 0:00:23]} O-O-O {[%emt 0:00:33]}
17. a3 {[%emt 0:00:03]} Nf8 {[%emt 0:00:11]} 18. b4 {[%emt 0:00:02]} Ne6 {
[%emt 0:00:01]} 19. Rb1 {[%emt 0:00:06]} b6 {[%emt 0:00:18]} 20. Ke2 {[%emt 0:
00:14]} Rd7 {[%emt 0:00:01]} 21. b5 {[%emt 0:00:02]} a5 {[%emt 0:00:11]} 22.
Rg1 {[%emt 0:00:58]} Kd8 {[%emt 0:00:06]} 23. Rbd1 {[%emt 0:00:14]} Ke8 {[%emt
0:00:02]} 24. a4 {[%emt 0:00:04]} Kf7 {[%emt 0:00:01]} 25. Na3 {[%emt 0:00:01]}
g6 {[%emt 0:00:05]} 26. Nc4 {[%emt 0:00:15]} Bf8 {[%emt 0:00:02]} 27. Rg2 {
[%emt 0:00:07]} Bh6 28. Rdg1 Bxe3 {[%emt 0:00:16]} 29. fxe3 {[%emt 0:00:02]} g5
{[%emt 0:00:01]} 30. Na3 {[%emt 0:00:08]} Rhd8 {[%emt 0:00:02]} 31. Rd1 {[%emt
0:00:00]} h4 32. c4 Ng7 {[%emt 0:00:04]} 33. Nb1 {[%emt 0:00:03]} Nh5 {[%emt 0:
00:01]} 34. Nc3 {[%emt 0:00:32]} Ng3+ {[%emt 0:00:01]} 35. Ke1 {[%emt 0:00:00]}
Rxd3 {[%emt 0:00:01]} 36. Nd5 {[%emt 0:00:01]} Ra3 {[%emt 0:00:06]} 37. Rgd2 {
[%emt 0:00:05]} Rd7 {[%emt 0:00:04]} 38. Nc3 {[%emt 0:00:08]} Re7 {[%emt 0:00:
03]} 39. Rd3 {[%emt 0:00:01]} Rb3 {[%emt 0:00:02]} 40. Nd5 {[%emt 0:00:02]}
Rxd3 {[%emt 0:00:01]} 41. Rxd3 Rd7 42. Kf2 {[%emt 0:00:02]} Ke6 {[%emt 0:00:02]
} 43. Ke1 {[%emt 0:00:02]} Nh5 {[%emt 0:00:01]} 44. Kf2 {[%emt 0:00:01]} Ng7 {
[%emt 0:00:00]} 45. Rb3 {[%emt 0:00:01]} Ne8 {[%emt 0:00:02]} 46. Ke2 {[%emt 0:
00:02]} Nd6 {[%emt 0:00:00]} 47. Kd3 {[%emt 0:00:00]} f5 {[%emt 0:00:01]} 48.
exf5+ {[%emt 0:00:02]} Kxf5 {[%emt 0:00:01]} 49. Rb1 {[%emt 0:00:01]} e4+ {
[%emt 0:00:06]} 50. fxe4+ {[%emt 0:00:01]} Nxe4 {[%emt 0:00:01]} 51. Rf1+ {
[%emt 0:00:01]} Ke5 {[%emt 0:00:00]} 52. Rf8 {[%emt 0:00:03]} Nd6 {[%emt 0:00:
02]} 53. Rg8 {[%emt 0:00:05]} Kf5 {[%emt 0:00:02]} 54. e4+ {[%emt 0:00:03]} Ke6
{[%emt 0:00:09]} 55. Rxg5 {[%emt 0:00:03]} Nf7 {[%emt 0:00:03]} 56. Rg6+ Ke5
57. Ke3 {[%emt 0:00:12]} Nd6 {[%emt 0:00:02]} 58. Rg5+ {[%emt 0:00:01]} Ke6 {
[%emt 0:00:00]} 59. Kd3 {[%emt 0:00:04]} Rf7 {[%emt 0:00:01]} 60. Rg6+ {[%emt
0:00:03]} Ke5 {[%emt 0:00:01]} 61. Rg5+ {[%emt 0:00:01]} Ke6 {[%emt 0:00:00]}
62. e5 {[%emt 0:00:11]} Nf5 {[%emt 0:00:05]} 63. Ke4 {[%emt 0:00:05]} Ng3+ {
[%emt 0:00:01]} 64. Ke3 {[%emt 0:00:00]} Nf1+ {[%emt 0:00:04]} 65. Ke4 {[%emt
0:00:01]} Nd2+ 66. Kd3 Nf3 {[%emt 0:00:02]} 67. Rh5 {[%emt 0:00:04]} Nxe5+ {
[%emt 0:00:02]} 68. Ke4 {[%emt 0:00:01]} Nxc4 {[%emt 0:00:01]} 69. Rh6+ {[%emt
0:00:01]} Kd7 {[%emt 0:00:01]} 70. Rxh4 {[%emt 0:00:03]} Nd6+ {[%emt 0:00:02]}
71. Kd3 {[%emt 0:00:00]} Rf3+ {[%emt 0:00:00]} 72. Ke2 {[%emt 0:00:02]} Rf7 {
[%emt 0:00:02]} 73. Rh6 {[%emt 0:00:01]} Nf5 {[%emt 0:00:02]} 74. Rh8 {[%emt 0:
00:06]} Kd6 {[%emt 0:00:02]} 75. Nc3 {[%emt 0:00:01]} Ke5 {[%emt 0:00:03]} 76.
Rd8 {[%emt 0:00:02]} Nd6 {[%emt 0:00:01]} 77. Ke3 {[%emt 0:00:02]} Rh7 {[%emt
0:00:02]} 78. Kd3 {[%emt 0:00:05]} Rxh3+ 79. Kc2 Kd4 {[%emt 0:00:02]} 80. Ne2+
{[%emt 0:00:00]} Kc4 {[%emt 0:00:01]} 81. Rd7 {[%emt 0:00:01]} Rh2 {[%emt 0:00:
02]} 82. Kd2 {[%emt 0:00:01]} Ne4+ {[%emt 0:00:02]} 83. Ke3 {[%emt 0:00:00]}
Nf6 {[%emt 0:00:01]} 84. Rf7 {[%emt 0:00:01]} Nd5+ {[%emt 0:00:03]} 85. Kf3 {
[%emt 0:00:01]} Rh6 {[%emt 0:00:04]} 86. Rd7 {[%emt 0:00:03]} Rd6 {[%emt 0:00:
01]} 87. Rh7 {[%emt 0:00:01]} Kb3 {[%emt 0:00:01]} 88. Ng3 {[%emt 0:00:02]}
Kxa4 {[%emt 0:00:02]} 89. Ne4 Kxb5 {[%emt 0:00:03]} 90. Nxd6+ {[%emt 0:00:04]}
cxd6 {[%emt 0:00:01]} 91. Rd7 {[%emt 0:00:01]} Kc6 {[%emt 0:00:02]} 92. Ra7 {
[%emt 0:00:01]} Nc7 {[%emt 0:00:01]} 93. Ke4 {[%emt 0:00:02]} d5+ {[%emt 0:00:
01]} 94. Kd3 {[%emt 0:00:01]} c4+ {[%emt 0:00:02]} 95. Kc2 {[%emt 0:00:02]} d4
{[%emt 0:00:02]} 96. Kd2 {[%emt 0:00:00]} Ne6 {[%emt 0:00:03]} 97. Rh7 {[%emt
0:00:02]} Nc5 {[%emt 0:00:03]} 98. Rh4 {[%emt 0:00:02]} Kb5 {[%emt 0:00:03]}
99. Kc2 {[%emt 0:00:01]} d3+ {[%emt 0:00:02]} 100. Kc3 {[%emt 0:00:01]} Na4+ {
[%emt 0:00:01]} 101. Kd4 {[%emt 0:00:01]} d2 {[%emt 0:00:02]} 102. Rh1 {[%emt
0:00:00]} c3 {[%emt 0:00:03]} 103. Kd3 {[%emt 0:00:01]} d1=R+ {[%emt 0:00:02]
Kd4} 0-1

[Event "Norway Chess 2015 Blitz"]
[Site "Stavanger"]
[Date "2015.06.15"]
[Round "1"]
[White "Nakamura, Hikaru"]
[Black "Topalov, Veselin"]
[Result "1-0"]
[ECO "A01"]
[WhiteElo "2883"]
[BlackElo "2641"]
[Annotator ""]
[PlyCount "55"]
[EventDate "2015.??.??"]
[EventCountry "NOR"]
[TimeControl "240+2"]

1. b3 {[%emt 0:00:59]} d5 {[%emt 0:01:00]} 2. Bb2 {[%emt 0:00:02]} Nf6 {[%emt
0:00:02]} 3. Nf3 {[%emt 0:00:02]} e6 {[%emt 0:00:03]} 4. g3 {[%emt 0:00:04]}
Be7 {[%emt 0:00:02]} 5. Bg2 {[%emt 0:00:02]} O-O {[%emt 0:00:02]} 6. O-O {
[%emt 0:00:02]} c5 {[%emt 0:00:01]} 7. e3 {[%emt 0:00:03]} Nc6 {[%emt 0:00:02]}
8. d4 {[%emt 0:00:02]} b6 {[%emt 0:00:05]} 9. dxc5 {[%emt 0:00:09]} bxc5 {
[%emt 0:00:01]} 10. c4 {[%emt 0:00:01]} Bb7 {[%emt 0:00:05]} 11. cxd5 {[%emt 0:
00:18]} exd5 {[%emt 0:00:05]} 12. Nc3 {[%emt 0:00:11]} Rc8 {[%emt 0:00:12]} 13.
Re1 {[%emt 0:00:18]} Re8 {[%emt 0:00:05]} 14. Nh4 {[%emt 0:00:10]} Ne5 {[%emt
0:00:27]} 15. Nb5 {[%emt 0:00:16]} Bf8 {[%emt 0:00:23]} 16. Nxa7 {[%emt 0:00:
03]} Ra8 {[%emt 0:00:02]} 17. Nb5 {[%emt 0:00:01]} Qb6 {[%emt 0:00:02]} 18. a4
{[%emt 0:00:15]} c4 {[%emt 0:00:09]} 19. Bd4 {[%emt 0:00:07]} Bc5 {[%emt 0:00:
02]} 20. b4 {[%emt 0:00:09]} Bxd4 {[%emt 0:00:02]} 21. Qxd4 {[%emt 0:00:01]}
Qxd4 {[%emt 0:00:09]} 22. Nxd4 {[%emt 0:00:03]} Nd3 {[%emt 0:00:10]} 23. Reb1 {
[%emt 0:00:04]} Ne4 {[%emt 0:00:02]} 24. Bxe4 {[%emt 0:00:02]} dxe4 {[%emt 0:
00:01]} 25. Nhf5 {[%emt 0:00:10]} Bd5 {[%emt 0:00:09]} 26. Nb5 {[%emt 0:00:25]}
g6 {[%emt 0:00:19]} 27. Nfd4 {[%emt 0:00:01]} Reb8 {[%emt 0:00:09]} 28. Nc7 {
[%emt 0:00:03]} 1-0

[Event "Norway Chess 2015 Blitz"]
[Site "Stavanger"]
[Date "2015.06.15"]
[Round "1"]
[White "Vachier-Lagrave, Maxime"]
[Black "Caruana, Fabiano"]
[Result "1-0"]
[ECO "A06"]
[WhiteElo "2886"]
[BlackElo "2679"]
[Annotator ""]
[PlyCount "89"]
[EventDate "2015.??.??"]
[EventCountry "NOR"]
[TimeControl "240+2"]

1. g3 {[%emt 0:01:00]} d5 {[%emt 0:00:59]} 2. Nf3 {[%emt 0:00:01]} g6 {[%emt 0:
00:03]} 3. Bg2 {[%emt 0:00:03]} Bg7 {[%emt 0:00:01]} 4. O-O {[%emt 0:00:02]} e5
{[%emt 0:00:01]} 5. d3 {[%emt 0:00:02]} Ne7 {[%emt 0:00:02]} 6. e4 {[%emt 0:00:
23]} O-O {[%emt 0:00:02]} 7. exd5 {[%emt 0:00:07]} Nxd5 {[%emt 0:00:01]} 8. Nc3
{[%emt 0:00:01]} Ne7 {[%emt 0:00:13]} 9. a4 {[%emt 0:00:09]} Nbc6 {[%emt 0:00:
03]} 10. a5 {[%emt 0:00:04]} Rb8 {[%emt 0:00:15]} 11. Nd2 {[%emt 0:00:10]} b6 {
[%emt 0:00:32]} 12. axb6 {[%emt 0:00:10]} cxb6 {[%emt 0:00:01]} 13. Re1 {[%emt
0:00:03]} Bb7 {[%emt 0:00:03]} 14. Nc4 {[%emt 0:00:03]} a6 {[%emt 0:00:14]} 15.
Ne4 {[%emt 0:00:10]} Nf5 {[%emt 0:00:24]} 16. c3 {[%emt 0:00:14]} h6 {[%emt 0:
00:11]} 17. b3 {[%emt 0:00:33]} Qc7 {[%emt 0:00:03]} 18. Ba3 {[%emt 0:00:04]}
Rfd8 {[%emt 0:00:08]} 19. Qe2 {[%emt 0:00:05]} b5 {[%emt 0:00:10]} 20. Ne3 {
[%emt 0:00:02]} Nxe3 {[%emt 0:00:02]} 21. fxe3 {[%emt 0:00:05]} Ne7 {[%emt 0:
00:15]} 22. Bb4 {[%emt 0:00:02]} Bxe4 {[%emt 0:00:22]} 23. Ba5 {[%emt 0:00:27]}
Qd7 {[%emt 0:00:06]} 24. Bxe4 {[%emt 0:00:09]} Rdc8 {[%emt 0:00:02]} 25. c4 {
[%emt 0:00:06]} bxc4 {[%emt 0:00:07]} 26. bxc4 {[%emt 0:00:01]} h5 {[%emt 0:00:
08]} 27. Bc3 {[%emt 0:00:07]} Rb6 {[%emt 0:00:01]} 28. Reb1 {[%emt 0:00:03]}
Rcb8 {[%emt 0:00:02]} 29. Rxb6 {[%emt 0:00:03]} Rxb6 {[%emt 0:00:00]} 30. c5 {
[%emt 0:00:00]} Rb5 {[%emt 0:00:02]} 31. Rxa6 {[%emt 0:00:09]} Rxc5 {[%emt 0:
00:01]} 32. Bb4 {[%emt 0:00:01]} Rc1+ {[%emt 0:00:01]} 33. Kg2 {[%emt 0:00:02]}
Qc7 {[%emt 0:00:03]} 34. Ra2 {[%emt 0:00:06]} Bf6 {[%emt 0:00:07]} 35. h4 {
[%emt 0:00:07]} Kg7 {[%emt 0:00:01]} 36. Qf2 {[%emt 0:00:02]} Nf5 {[%emt 0:00:
07]} 37. Bxf5 {[%emt 0:00:07]} gxf5 {[%emt 0:00:01]} 38. Bd2 {[%emt 0:00:04]}
Qc6+ {[%emt 0:00:07]} 39. e4 {[%emt 0:00:01]} Rd1 {[%emt 0:00:05]} 40. Qxf5 {
[%emt 0:00:03]} Qb5 {[%emt 0:00:04]} 41. Bh6+ {[%emt 0:00:02]} Kxh6 {[%emt 0:
00:04]} 42. Qxf6+ {[%emt 0:00:01]} Kh7 {[%emt 0:00:01]} 43. Qxf7+ {[%emt 0:00:
01]} Kh6 {[%emt 0:00:00]} 44. Qf6+ {[%emt 0:00:01]} Kh7 {[%emt 0:00:01]} 45.
Ra7+ {[%emt 0:00:01]} 1-0

[Event "Norway Chess 2015 Blitz"]
[Site "Stavanger"]
[Date "2015.06.15"]
[Round "2"]
[White "Anand, Viswanathan"]
[Black "Hammer, Jon Ludvig"]
[Result "1-0"]
[ECO "A06"]
[WhiteElo "2767"]
[BlackElo "2648"]
[Annotator ""]
[PlyCount "95"]
[EventDate "2015.??.??"]
[EventCountry "NOR"]
[TimeControl "240+2"]

1. Nf3 {[%emt 0:01:00]} d5 {[%emt 0:00:59]} 2. g3 {[%emt 0:00:01]} g6 {[%emt 0:
00:01]} 3. Bg2 Bg7 4. c4 {[%emt 0:00:04]} dxc4 {[%emt 0:00:03]} 5. Na3 {[%emt
0:00:04]} c5 {[%emt 0:00:02]} 6. Nxc4 {[%emt 0:00:02]} Nc6 {[%emt 0:00:00]} 7.
d3 {[%emt 0:00:05]} Nh6 {[%emt 0:00:12]} 8. Be3 {[%emt 0:00:15]} Be6 {[%emt 0:
00:01]} 9. O-O {[%emt 0:00:25]} b6 {[%emt 0:00:22]} 10. Rc1 {[%emt 0:00:34]}
Nf5 {[%emt 0:00:04]} 11. Bd2 {[%emt 0:00:01]} Rc8 {[%emt 0:00:17]} 12. Bc3 {
[%emt 0:00:06]} Nfd4 {[%emt 0:00:04]} 13. Nxd4 {[%emt 0:00:06]} Bxd4 {[%emt 0:
00:12]} 14. Qa4 {[%emt 0:00:29]} Bd7 {[%emt 0:00:06]} 15. Bxc6 {[%emt 0:00:10]}
Bxc6 {[%emt 0:00:01]} 16. Qxa7 {[%emt 0:00:03]} b5 {[%emt 0:00:51]} 17. Na5 {
[%emt 0:00:28]} Ba8 {[%emt 0:00:07]} 18. Bxd4 {[%emt 0:00:04]} Qxd4 {[%emt 0:
00:01]} 19. Nb3 {[%emt 0:00:04]} Qxb2 {[%emt 0:00:06]} 20. Rxc5 {[%emt 0:00:12]
} O-O {[%emt 0:00:05]} 21. Rxc8 {[%emt 0:00:03]} Rxc8 {[%emt 0:00:01]} 22. Qxe7
{[%emt 0:00:01]} Qxa2 23. Nd4 {[%emt 0:00:04]} Qd5 {[%emt 0:00:05]} 24. Nf3 {
[%emt 0:00:01]} Qf5 {[%emt 0:00:08]} 25. Ne5 {[%emt 0:00:07]} b4 {[%emt 0:00:
34]} 26. e4 {[%emt 0:00:02]} Qe6 {[%emt 0:00:04]} 27. Qxe6 {[%emt 0:00:01]}
fxe6 {[%emt 0:00:00]} 28. Rb1 Rb8 29. f4 {[%emt 0:00:04]} Rb6 {[%emt 0:00:05]}
30. Kf2 {[%emt 0:00:01]} Bb7 {[%emt 0:00:01]} 31. Ke3 {[%emt 0:00:02]} Ba6 {
[%emt 0:00:03]} 32. Kd4 {[%emt 0:00:02]} Kg7 {[%emt 0:00:02]} 33. Rb3 {[%emt 0:
00:07]} h6 {[%emt 0:00:03]} 34. Kc5 {[%emt 0:00:01]} Rb5+ {[%emt 0:00:00]} 35.
Kc6 {[%emt 0:00:01]} g5 {[%emt 0:00:04]} 36. Nd7 {[%emt 0:00:02]} gxf4 {[%emt
0:00:09]} 37. gxf4 {[%emt 0:00:01]} Rh5 {[%emt 0:00:02]} 38. Nc5 {[%emt 0:00:
02]} Bc8 {[%emt 0:00:08]} 39. Rxb4 {[%emt 0:00:01]} e5 {[%emt 0:00:07]} 40. f5
{[%emt 0:00:04]} Rxh2 {[%emt 0:00:01]} 41. Rb8 {[%emt 0:00:02]} Bxf5 {[%emt 0:
00:04]} 42. exf5 {[%emt 0:00:01]} Rf2 {[%emt 0:00:01]} 43. Ne6+ {[%emt 0:00:01]
} Kf6 {[%emt 0:00:04]} 44. Rf8+ {[%emt 0:00:04]} Ke7 {[%emt 0:00:00]} 45. Kd5 {
[%emt 0:00:02]} Rf3 {[%emt 0:00:01]} 46. Kxe5 {[%emt 0:00:04]} Rxd3 {[%emt 0:
00:03]} 47. f6+ Kd7 48. Rd8+ {[%emt 0:00:02]} 1-0

[Event "Norway Chess 2015 Blitz"]
[Site "Stavanger"]
[Date "2015.06.15"]
[Round "2"]
[White "Aronian, Levon"]
[Black "Giri, Anish"]
[Result "1-0"]
[ECO "A61"]
[WhiteElo "2816"]
[BlackElo "2771"]
[Annotator ""]
[PlyCount "59"]
[EventDate "2015.??.??"]
[EventCountry "NOR"]
[TimeControl "240+2"]

1. d4 {[%emt 0:00:59]} Nf6 {[%emt 0:00:58]} 2. Nf3 {[%emt 0:00:02]} e6 {[%emt
0:00:04]} 3. c4 {[%emt 0:00:04]} c5 {[%emt 0:00:01]} 4. d5 {[%emt 0:00:03]} d6
{[%emt 0:00:01]} 5. Nc3 {[%emt 0:00:01]} exd5 {[%emt 0:00:00]} 6. cxd5 {[%emt
0:00:01]} g6 {[%emt 0:00:01]} 7. Bf4 {[%emt 0:00:06]} a6 {[%emt 0:00:01]} 8.
Nd2 {[%emt 0:00:14]} Nh5 {[%emt 0:00:08]} 9. Qa4+ {[%emt 0:00:02]} b5 {[%emt 0:
00:56]} 10. Nxb5 {[%emt 0:00:04]} axb5 {[%emt 0:00:18]} 11. Qxa8 {[%emt 0:00:
01]} Qb6 {[%emt 0:00:37]} 12. e3 {[%emt 0:00:21]} Nxf4 {[%emt 0:00:09]} 13.
exf4 {[%emt 0:00:02]} Bg7 {[%emt 0:00:00]} 14. a4 {[%emt 0:00:05]} O-O {[%emt
0:00:23]} 15. Bxb5 {[%emt 0:00:02]} Bxb2 {[%emt 0:00:19]} 16. O-O {[%emt 0:00:
39]} Bxa1 {[%emt 0:00:02]} 17. Nc4 {[%emt 0:00:15]} Qb7 {[%emt 0:00:23]} 18.
Qxb7 {[%emt 0:00:02]} Bxb7 {[%emt 0:00:01]} 19. Rxa1 {[%emt 0:00:01]} Bxd5 {
[%emt 0:00:00]} 20. Nxd6 {[%emt 0:00:04]} Rd8 {[%emt 0:00:01]} 21. Nc4 {[%emt
0:00:08]} Nc6 {[%emt 0:00:02]} 22. Ne3 {[%emt 0:00:12]} Nd4 {[%emt 0:00:11]}
23. Nxd5 {[%emt 0:00:03]} Rxd5 {[%emt 0:00:03]} 24. Bc4 {[%emt 0:00:01]} Rd6 {
[%emt 0:00:02]} 25. a5 {[%emt 0:00:32]} Nc2 {[%emt 0:00:01]} 26. Rc1 {[%emt 0:
00:01]} Nb4 {[%emt 0:00:03]} 27. Bf1 {[%emt 0:00:14]} Rc6 {[%emt 0:00:04]} 28.
g3 {[%emt 0:00:04]} Rc7 {[%emt 0:00:02]} 29. a6 {[%emt 0:00:05]} c4 {[%emt 0:
00:01]} 30. Ra1 {[%emt 0:00:13]} 1-0

[Event "Norway Chess 2015 Blitz"]
[Site "Stavanger"]
[Date "2015.06.15"]
[Round "2"]
[White "Carlsen, Magnus"]
[Black "Vachier-Lagrave, Maxime"]
[Result "0-1"]
[ECO "A05"]
[WhiteElo "2933"]
[BlackElo "2886"]
[Annotator ""]
[PlyCount "148"]
[EventDate "2015.??.??"]
[EventCountry "NOR"]
[TimeControl "240+2"]

1. Nf3 {[%emt 0:01:00]} Nf6 {[%emt 0:01:04]} 2. g3 {[%emt 0:00:01]} b5 {[%emt
0:00:02]} 3. Bg2 {[%emt 0:00:03]} Bb7 {[%emt 0:00:01]} 4. O-O {[%emt 0:00:03]}
e6 {[%emt 0:00:02]} 5. d3 {[%emt 0:00:02]} c5 {[%emt 0:00:08]} 6. e4 {[%emt 0:
00:01]} d6 {[%emt 0:00:02]} 7. a4 {[%emt 0:00:21]} b4 {[%emt 0:00:01]} 8. Nbd2
{[%emt 0:00:03]} Be7 {[%emt 0:00:09]} 9. Nc4 {[%emt 0:00:08]} O-O {[%emt 0:00:
09]} 10. Re1 {[%emt 0:00:05]} Nbd7 {[%emt 0:00:24]} 11. Bf4 {[%emt 0:00:08]} d5
{[%emt 0:00:18]} 12. Nd6 {[%emt 0:00:50]} Bc6 {[%emt 0:00:02]} 13. Ng5 {[%emt
0:00:01]} Nb6 {[%emt 0:00:37]} 14. Ndxf7 {[%emt 0:00:24]} Rxf7 {[%emt 0:00:02]}
15. Bh3 {[%emt 0:00:01]} Bd7 {[%emt 0:00:11]} 16. a5 {[%emt 0:00:02]} e5 {
[%emt 0:00:28]} 17. axb6 {[%emt 0:00:25]} Bxh3 {[%emt 0:00:05]} 18. b7 {[%emt
0:00:11]} Rb8 {[%emt 0:00:03]} 19. Bxe5 {[%emt 0:00:02]} Rxb7 {[%emt 0:00:07]}
20. Nxh3 {[%emt 0:00:01]} Qd7 {[%emt 0:00:20]} 21. Nf4 {[%emt 0:00:03]} dxe4 {
[%emt 0:00:09]} 22. dxe4 {[%emt 0:00:12]} Ng4 {[%emt 0:00:01]} 23. Qd5 {[%emt
0:00:10]} Nxe5 {[%emt 0:00:06]} 24. Qxe5 {[%emt 0:00:01]} Bd6 {[%emt 0:00:01]}
25. Qd5 {[%emt 0:00:12]} Bxf4 {[%emt 0:00:02]} 26. Qxd7 {[%emt 0:00:01]} Rbxd7
{[%emt 0:00:01]} 27. gxf4 {[%emt 0:00:01]} Rxf4 {[%emt 0:00:01]} 28. Re2 {
[%emt 0:00:02]} Re7 {[%emt 0:00:05]} 29. e5 {[%emt 0:00:02]} Rf5 {[%emt 0:00:
03]} 30. e6 {[%emt 0:00:02]} g6 {[%emt 0:00:03]} 31. Ra6 {[%emt 0:00:02]} Kg7 {
[%emt 0:00:01]} 32. Kg2 {[%emt 0:00:05]} Kf6 {[%emt 0:00:01]} 33. Re3 {[%emt 0:
00:03]} Re5 {[%emt 0:00:07]} 34. Rxe5 {[%emt 0:00:03]} Kxe5 {[%emt 0:00:01]}
35. Kf3 {[%emt 0:00:00]} Kd5 {[%emt 0:00:06]} 36. h4 {[%emt 0:00:05]} h6 {
[%emt 0:00:01]} 37. b3 {[%emt 0:00:15]} Rxe6 {[%emt 0:00:02]} 38. Rxa7 {[%emt
0:00:01]} Kd4 {[%emt 0:00:00]} 39. Rc7 {[%emt 0:00:01]} Rf6+ {[%emt 0:00:01]}
40. Ke2 {[%emt 0:00:01]} Rf5 {[%emt 0:00:02]} 41. Rc6 {[%emt 0:00:03]} Kc3 {
[%emt 0:00:01]} 42. Kd1 {[%emt 0:00:01]} g5 {[%emt 0:00:02]} 43. hxg5 {[%emt 0:
00:01]} hxg5 {[%emt 0:00:00]} 44. Kc1 {[%emt 0:00:01]} Kd4 {[%emt 0:00:02]} 45.
Rg6 {[%emt 0:00:02]} Ke4 {[%emt 0:00:01]} 46. Kd2 {[%emt 0:00:01]} Kf3 {[%emt
0:00:01]} 47. Ke1 {[%emt 0:00:00]} g4 {[%emt 0:00:02]} 48. Kf1 {[%emt 0:00:01]}
Rd5 {[%emt 0:00:08]} 49. Rf6+ {[%emt 0:00:01]} Ke4 {[%emt 0:00:00]} 50. Ke2 {
[%emt 0:00:01]} Kd4 {[%emt 0:00:02]} 51. Rf4+ {[%emt 0:00:04]} Kc3 {[%emt 0:00:
01]} 52. Rc4+ {[%emt 0:00:01]} Kb2 {[%emt 0:00:02]} 53. Ke3 {[%emt 0:00:02]}
Re5+ {[%emt 0:00:03]} 54. Kd2 {[%emt 0:00:05]} Rf5 {[%emt 0:00:01]} 55. Ke2 {
[%emt 0:00:01]} Rh5 {[%emt 0:00:02]} 56. Kf1 {[%emt 0:00:06]} Re5 {[%emt 0:00:
05]} 57. Kg2 {[%emt 0:00:04]} Re2 {[%emt 0:00:01]} 58. Rxc5 {[%emt 0:00:00]}
Rxc2 {[%emt 0:00:01]} 59. Rg5 Kxb3 {[%emt 0:00:03]} 60. Rxg4 {[%emt 0:00:02]}
Ka3 {[%emt 0:00:01]} 61. Rg8 {[%emt 0:00:02]} b3 {[%emt 0:00:01]} 62. Ra8+ {
[%emt 0:00:02]} Kb2 {[%emt 0:00:01]} 63. Kg3 {[%emt 0:00:05]} Rc3+ {[%emt 0:00:
02]} 64. Kg4 {[%emt 0:00:02]} Kc2 {[%emt 0:00:02]} 65. Rb8 {[%emt 0:00:05]} b2
{[%emt 0:00:02]} 66. Rxb2+ {[%emt 0:00:02]} Kxb2 {[%emt 0:00:01]} 67. f4 {
[%emt 0:00:00]} Rc4 {[%emt 0:00:04]} 68. Kf5 {[%emt 0:00:04]} Kc3 {[%emt 0:00:
01]} 69. Ke5 {[%emt 0:00:00]} Rc5+ 70. Ke4 Rc8 {[%emt 0:00:07]} 71. f5 {[%emt
0:00:02]} Kc4 {[%emt 0:00:01]} 72. Ke5 {[%emt 0:00:01]} Kc5 {[%emt 0:00:01]}
73. Ke6 {[%emt 0:00:01]} Rc6+ {[%emt 0:00:02]} 74. Ke7 {[%emt 0:00:01]} Kd4 0-1